bitfinex/quotes_ETHUSD_20230404
["timestamp","ask_amount","ask_price","bid_price","bid_amount"]
[1680607444416,5.745,1861.9,1861.8,2.45481747]
[1680607444617,5.744,1861.9,1861.8,2.45481747]
[1680607444986,5.744,1861.9,1861.8,2.66965747]
[1680607445231,0.003,1861.9,1861.8,2.45481747]
[1680607445386,1.0,1862.2,1861.8,3.34482922]
[1680607445733,0.006,1862.4,1861.9,3.0]
[1680607445915,1.0,1862.5,1861.9,3.23684222]
[1680607446121,2.76602218,1862.4,1861.9,3.23684222]
[1680607446334,2.76602218,1862.4,1861.9,3.02202222]
[1680607446651,2.76602218,1862.4,1861.8,2.45681747]
[1680607446652,5.741,1862.2,1861.8,2.45681747]
[1680607446849,5.741,1862.0,1861.8,2.45481747]
[1680607447019,6.741,1861.9,1861.8,2.45481747]
[1680607447223,1.003,1861.9,1861.8,2.45481747]
[1680607447549,9.50702218,1861.9,1861.8,2.45481747]
[1680607447747,15.55898218,1861.9,1861.8,2.45481747]
[1680607447951,7.741,1861.7,1861.6,0.4695896]
[1680607448120,10.91303218,1861.7,1861.6,0.4695896]
[1680607448454,14.29103218,1861.7,1861.6,0.0005896]
[1680607448748,6.741,1861.2,1861.1,0.1]
[1680607448949,9.51002218,1861.2,1861.1,0.1]
[1680607449255,6.741,1860.7,1860.6,0.1]
[1680607449423,3.81201218,1860.7,1860.6,0.1]
[1680607449625,3.80901218,1860.7,1860.6,0.1]
[1680607449855,3.80901218,1860.7,1859.6,0.006]
[1680607449856,1.0,1860.5,1859.6,0.006]
[1680607450026,1.0,1860.5,1859.7,0.02204828]
[1680607450027,1.0,1860.2,1859.7,0.02204828]
[1680607450226,2.76602218,1859.9,1859.7,0.02204828]
[1680607450559,1.0,1860.1,1859.7,0.23712828]
[1680607450709,1.0,1860.1,1859.8,0.36952334]
[1680607451619,1.0,1860.1,1859.8,0.51552928]
[1680607451804,2.699,1860.5,1859.8,0.51552928]
[1680607451805,0.006,1860.4,1859.8,0.51552928]
[1680607452009,0.006,1860.4,1859.9,0.02204591]
[1680607452010,1.0,1860.0,1859.9,0.02204591]
[1680607452209,2.76602218,1860.4,1860.0,1.95202799]
[1680607452210,1.307,1860.4,1860.0,1.95202799]
[1680607452410,3.85202218,1860.4,1860.0,1.95202799]
[1680607452612,1.0,1860.2,1860.0,1.95202799]
[1680607452820,2.76602218,1860.1,1860.0,1.95202799]
[1680607453057,1.006,1860.2,1860.0,1.95202799]
[1680607453208,1.0,1860.2,1860.0,1.95202799]
[1680607453408,2.76602218,1860.1,1860.0,1.95202799]
[1680607453811,1.006,1860.2,1860.1,1.9907034]
[1680607454013,0.04299,1860.7,1860.1,2.2057434]
[1680607454014,0.004,1860.5,1860.1,2.2057434]
[1680607454337,0.006,1860.9,1860.1,1.9907034]
[1680607454554,1.0,1860.8,1860.3,0.21501]
[1680607454853,1.0,1860.6,1860.3,0.64504]
[1680607455052,1.0,1860.8,1860.4,0.294504]
[1680607455255,1.0,1860.8,1860.5,0.21499]
[1680607455656,0.006,1861.1,1860.6,2.2]
[1680607455855,5.4809,1861.8,1860.6,2.2]
[1680607455856,0.006,1861.4,1860.9,2.2]
[1680607456058,1.0,1861.4,1861.0,0.87479]
[1680607456355,1.0,1861.4,1861.1,0.087479]
[1680607456557,1.0,1861.4,1860.7,4.232]
[1680607456763,0.5,1861.2,1861.1,0.38675517]
[1680607457254,0.54298,1861.2,1861.1,0.38675517]
[1680607457554,0.5,1861.2,1861.1,0.38675517]
[1680607457858,0.5,1861.2,1860.8,0.02203523]
[1680607458060,0.5,1861.2,1860.6,0.006]
[1680607458361,5.4684,1861.8,1860.7,0.21496]
[1680607458362,0.5,1861.1,1860.7,0.21496]
[1680607458516,0.5,1860.9,1860.7,0.02803643]
[1680607458715,0.5,1861.2,1860.7,0.62903674]
[1680607458925,0.5,1860.8,1860.7,0.62904674]
[1680607459141,1.006,1861.5,1860.8,0.99253319]
[1680607459379,5.741,1861.3,1860.8,0.99253319]
[1680607459582,5.741,1861.3,1860.9,0.12128737]
[1680607459583,0.009,1861.3,1860.9,0.12128737]
[1680607459758,3.148,1862.1,1861.0,0.6448]
[1680607459759,0.006,1861.9,1861.0,0.6448]
[1680607460056,0.004,1861.9,1861.0,0.6448]
[1680607460264,5.741,1861.8,1861.1,0.31651169]
[1680607460429,5.741,1861.7,1861.2,0.2149]
[1680607460780,5.741,1861.7,1861.3,0.02202933]
[1680607460781,0.009,1861.7,1861.3,0.02202933]
[1680607461057,0.006,1862.1,1861.3,0.46692933]
[1680607461259,2.77202218,1862.1,1861.3,0.23692933]
[1680607461560,8.50702218,1862.0,1861.4,0.23]
[1680607461731,8.51602218,1862.0,1861.4,0.21489]
[1680607462147,5.741,1861.9,1861.4,0.21489]
[1680607462466,5.75,1861.9,1861.3,0.21489]
[1680607462628,8.51602218,1861.9,1861.2,2.148]
[1680607462959,5.741,1861.7,1861.1,0.06448]
[1680607463145,5.75,1861.7,1861.0,0.21493]
[1680607463472,5.75,1861.7,1861.1,0.23]
[1680607463670,5.75,1861.7,1860.8,0.99453319]
[1680607463671,5.741,1861.5,1860.8,0.99453319]
[1680607463882,5.75,1861.5,1860.9,0.23]
[1680607464087,5.75,1861.5,1861.1,3.2]
[1680607464088,0.009,1861.5,1861.1,3.2]
[1680607464297,0.54340847,1862.5,1861.2,3.76491]
[1680607464298,0.006,1862.2,1861.2,3.76491]
[1680607464587,2.76602218,1862.1,1861.2,5.91291]
[1680607464741,2.77202218,1862.1,1861.5,0.21487]
[1680607464937,5.741,1862.0,1861.3,0.591291]
[1680607465182,5.741,1861.8,1861.4,0.21489]
[1680607465384,8.51602218,1861.8,1861.4,0.66669814]
[1680607465539,0.009,1861.8,1861.4,0.66669814]
[1680607465887,0.006,1862.3,1861.4,1.59292795]
[1680607466050,5.741,1862.1,1861.5,0.23]
[1680607466250,5.741,1862.1,1861.6,0.66660578]
[1680607466251,8.51602218,1862.1,1861.6,0.66660578]
[1680607466592,8.51602218,1862.1,1861.6,0.23687578]
[1680607466734,0.009,1862.1,1861.7,0.23]
[1680607467063,5.78995,1862.6,1861.8,0.0220234]
[1680607467263,5.741,1862.4,1861.8,0.0220234]
[1680607467566,8.51602218,1862.4,1861.8,0.0220234]
[1680607468584,5.741,1862.3,1861.8,0.0220234]
[1680607468784,5.741,1862.3,1861.9,0.45129895]
[1680607468785,5.75,1862.3,1861.9,0.45129895]
[1680607469285,5.741,1862.1,1861.9,0.45129895]
[1680607469490,5.75,1862.1,1861.9,0.45129895]
[1680607470087,0.009,1862.1,1861.9,0.45129895]
[1680607470286,0.006,1862.2,1861.9,0.45129895]
[1680607470480,5.741,1862.0,1861.9,0.45129895]
[1680607470686,8.55898218,1862.0,1861.9,0.45129895]
[1680607470888,8.51602218,1862.0,1861.9,0.45129895]
[1680607471061,8.55898218,1862.0,1861.9,0.45129895]
[1680607471283,9.4234724,1862.0,1861.9,0.45129895]
[1680607471468,9.4174724,1862.0,1861.9,9.895e-05]
[1680607471814,9.4174724,1862.0,1861.0,0.21493]
[1680607471815,5.78696,1862.0,1861.0,0.006]
[1680607471999,8.55298218,1862.0,1861.1,2.36292]
[1680607472164,8.55298218,1862.0,1861.2,0.451192]
[1680607472361,8.55298218,1862.0,1861.1,0.006]
[1680607472362,1.0,1861.4,1861.1,0.006]
[1680607472574,3.78398,1861.2,1860.9,0.006]
[1680607472787,3.78398,1861.2,1860.8,0.99253319]
[1680607472788,0.04298,1860.9,1860.8,0.99253319]
[1680607472996,6.63597218,1860.9,1860.8,0.99253319]
[1680607473181,12.22486218,1860.9,1860.8,0.99253319]
[1680607473414,17.45086218,1860.9,1860.8,0.99253319]
[1680607473592,19.3131434,1860.9,1860.8,0.99253319]
[1680607473778,4.741,1860.4,1860.3,0.006]
[1680607473979,0.043,1860.2,1860.1,1.9967034]
[1680607474202,2.80902218,1860.2,1860.1,1.9967034]
[1680607474409,6.55002218,1860.2,1860.1,1.9967034]
[1680607474608,6.51002218,1860.2,1860.1,1.9967034]
[1680607475063,3.744,1860.2,1860.1,1.9967034]
[1680607475352,3.744,1860.2,1860.0,1.95202799]
[1680607475353,5.241,1860.1,1860.0,1.95202799]
[1680607475556,0.003,1860.1,1860.0,1.95202799]
[1680607475755,5.75,1860.4,1860.1,0.45592561]
[1680607475921,8.50702218,1860.2,1860.1,0.45592561]
[1680607476122,18.82380732,1861.2,1860.1,0.69672097]
[1680607476324,0.04297,1861.7,1860.2,5.76604235]
[1680607476531,0.002,1861.2,1861.0,4.23]
[1680607476766,0.008,1861.8,1861.1,0.64476]
[1680607476909,0.429945,1862.1,1861.1,0.64476]
[1680607476910,0.429945,1862.1,1861.3,4.216]
[1680607477107,0.429945,1862.1,1861.2,3.066476]
[1680607477412,0.429945,1862.1,1861.2,0.82936659]
[1680607477654,1.0,1862.0,1861.2,0.82936659]
[1680607477894,1.0,1862.0,1861.1,0.77251388]
[1680607477895,5.741,1861.9,1861.1,0.77251388]
[1680607478058,1.0,1861.6,1860.8,0.004]
[1680607478405,2.7221,1861.8,1860.8,0.23698523]
[1680607478700,5.78396,1861.9,1860.8,3.51692675]
[1680607478901,5.743,1861.9,1860.8,3.24299523]
[1680607479067,6.78596,1861.9,1860.8,0.24298523]
[1680607479400,6.78596,1861.9,1859.9,0.106]
[1680607479401,5.741,1860.5,1859.9,0.106]
[1680607479599,1.0,1859.9,1859.1,0.12]
[1680607479772,0.12904,1859.7,1859.1,0.12]
[1680607479967,5.741,1859.6,1859.1,0.12]
[1680607480171,5.743,1859.6,1859.1,0.12]
[1680607480484,5.741,1859.4,1859.1,0.12]
[1680607480667,5.743,1859.4,1859.1,0.12]
[1680607480870,0.002,1859.4,1859.1,0.12]
[1680607481070,0.02203523,1859.7,1859.1,0.12]
[1680607481496,5.741,1859.6,1859.1,0.12]
[1680607481700,5.749,1859.6,1859.2,0.52341186]
[1680607481899,5.78602,1859.6,1859.2,0.52341186]
[1680607482210,5.741,1859.4,1859.2,0.52341186]
[1680607482392,5.743,1859.4,1859.2,0.52341186]
[1680607482628,5.743,1859.4,1859.1,0.12]
[1680607483546,5.741,1859.2,1859.1,0.12]
[1680607483700,5.78602,1859.2,1859.1,0.12]
[1680607483907,8.55204218,1859.2,1859.1,0.12]
[1680607484525,5.743,1859.2,1859.1,0.12]
[1680607484850,0.002,1859.2,1859.1,0.12]
[1680607484992,0.09202,1860.0,1859.2,1.49188425]
[1680607485196,2.85204218,1859.9,1859.2,1.49188425]
[1680607485395,0.04301,1859.8,1859.2,1.49188425]
[1680607485648,0.04301,1859.8,1859.3,0.44796609]
[1680607485649,2.76602218,1859.7,1859.3,0.44796609]
[1680607485943,6.06062222,1859.6,1859.3,0.44796609]
[1680607486153,8.55004218,1859.5,1859.3,0.44796609]
[1680607486355,0.04302,1859.4,1859.3,0.44796609]
[1680607486655,5.741,1859.4,1859.2,1.49188425]
[1680607486801,5.741,1859.3,1859.2,1.49188425]
[1680607487148,0.002,1859.3,1859.2,1.49188425]
[1680607487326,5.749,1859.6,1859.2,1.49188425]
[1680607487647,5.741,1859.4,1859.2,1.49188425]
[1680607487812,2.81104218,1859.4,1859.2,1.49188425]
[1680607488160,0.43008,1860.1,1859.2,1.49188425]
[1680607488161,0.008,1859.7,1859.2,1.49188425]
[1680607488442,8.50702218,1859.6,1859.2,1.49188425]
[1680607488650,0.008,1859.6,1859.3,0.45672514]
[1680607488801,0.30115,1859.5,1859.3,0.45672514]
[1680607488993,5.741,1859.4,1859.3,0.45672514]
[1680607489200,5.749,1859.4,1859.3,0.45672514]
[1680607489399,8.51502218,1859.4,1859.3,0.45672514]
[1680607489811,0.002,1859.4,1859.2,1.44860939]
[1680607490088,5.741,1859.3,1859.2,1.44860939]
[1680607490213,5.78602,1859.3,1859.2,1.44860939]
[1680607490600,0.002,1859.3,1859.2,1.44860939]
[1680607490800,0.04301,1859.7,1859.2,1.44860939]
[1680607491101,5.741,1859.5,1859.2,1.44860939]
[1680607491304,5.741,1859.4,1859.2,1.44860939]
[1680607491658,8.50902218,1859.4,1859.3,0.49014769]
[1680607492161,10.71004218,1859.4,1859.3,0.49014769]
[1680607492305,10.71004218,1859.4,1859.3,0.00014769]
[1680607492306,15.7836504,1859.4,1859.3,0.00014769]
[1680607492500,5.741,1859.0,1858.9,0.1]
[1680607492730,11.63811218,1859.0,1858.9,0.1]
[1680607492945,13.66102218,1859.0,1858.9,0.1]
[1680607493113,12.96545741,1859.0,1858.9,0.1]
[1680607493315,5.741,1858.8,1858.1,0.1]
[1680607493645,2.76602218,1858.2,1858.1,0.1]
[1680607493870,2.83110741,1858.2,1858.1,0.1]
[1680607494178,4.98310741,1858.2,1858.1,0.1]
[1680607494472,6.76307815,1858.2,1857.5,0.0070572]
[1680607494677,2.76602218,1857.8,1857.5,0.0070572]
[1680607495180,0.002,1858.0,1857.8,1.0]
[1680607495468,1.37040522,1859.0,1857.8,1.0]
[1680607495469,0.002,1858.9,1858.3,0.64573]
[1680607495620,0.002,1859.1,1858.3,0.64573]
[1680607495820,5.741,1859.1,1858.3,0.470674]
[1680607496066,5.743,1859.1,1858.3,0.21524]
[1680607496579,0.002,1859.1,1858.4,3.41523]
[1680607496724,2.76602218,1859.0,1858.5,0.341523]
[1680607497080,0.002,1859.3,1858.5,0.21522]
[1680607497237,2.76602218,1859.2,1858.6,1.0]
[1680607497421,2.76602218,1859.2,1858.7,0.21519]
[1680607497623,2.76602218,1859.1,1858.6,0.42246694]
[1680607497823,2.76602218,1859.1,1858.6,1.63767694]
[1680607498031,8.50702218,1859.1,1858.6,1.42246694]
[1680607498242,9.3599244,1859.1,1858.6,0.42846694]
[1680607498463,2.76602218,1858.8,1858.6,0.42246694]
[1680607499018,0.02203523,1858.7,1858.6,0.42246694]
[1680607499221,2.78805741,1858.7,1858.6,0.42246694]
[1680607499731,0.002,1858.9,1858.4,3.63047]
[1680607499924,2.76602218,1858.9,1858.6,0.2152]
[1680607500126,0.02403523,1859.1,1858.6,2.4152]
[1680607500370,2.76602218,1859.1,1858.8,3.41518]
[1680607500682,5.749,1859.5,1858.8,3.41518]
[1680607500824,2.78805741,1859.4,1858.8,3.41518]
[1680607501024,2.78805741,1859.4,1858.8,3.84293397]
[1680607501270,2.78805741,1859.4,1858.8,0.64293397]
[1680607501498,0.002,1859.6,1858.8,6.42787]
[1680607501651,0.002,1859.6,1859.1,0.64545]
[1680607501652,2.76602218,1859.6,1859.1,0.64545]
[1680607501850,2.76602218,1859.6,1859.1,2.84545]
[1680607502083,2.193,1860.2,1859.3,0.21513]
[1680607502084,0.008,1859.9,1859.3,0.21513]
[1680607502398,0.02203523,1860.0,1859.4,3.2]
[1680607502635,0.02203523,1860.0,1859.2,0.22313]
[1680607502766,0.02203523,1860.0,1859.2,0.008]
[1680607502767,0.06504523,1860.0,1859.2,0.008]
[1680607502952,0.06504523,1860.0,1859.0,3.22316]
[1680607503293,5.741,1859.9,1859.1,3.552316]
[1680607503596,5.741,1859.9,1859.4,3.2]
[1680607503597,5.743,1859.9,1859.4,3.2]
[1680607504108,5.743,1859.9,1859.4,3.41512]
[1680607504269,0.002,1859.9,1859.6,2.2]
[1680607504447,0.002,1859.9,1859.4,1.344312]
[1680607504448,2.76602218,1859.9,1859.4,0.344312]
[1680607504809,2.78805741,1859.8,1859.1,0.002]
[1680607504966,0.04301,1859.7,1859.4,2.2]
[1680607505150,0.08801,1860.1,1860.0,2.2]
[1680607505502,0.086,1860.3,1859.8,0.002]
[1680607505651,0.11000001,1860.7,1859.5,11.51802218]
[1680607505652,0.043,1860.4,1859.5,6.598]
[1680607505853,0.11000001,1860.7,1859.7,0.5]
[1680607506055,0.11000001,1860.7,1859.8,2.63015]
[1680607506381,0.11000001,1860.7,1860.3,2.2]
[1680607506564,0.11000001,1860.7,1860.2,0.23705109]
[1680607506759,0.11000001,1860.7,1860.3,0.21501]
[1680607507163,0.11000001,1860.7,1860.3,2.41501]
[1680607507376,0.11000001,1860.7,1860.4,0.02202873]
[1680607507770,0.11000001,1860.7,1860.5,2.76602218]
[1680607508079,2.148,1861.5,1860.5,2.76602218]
[1680607508080,0.002,1861.6,1861.0,2.2]
[1680607508398,0.11000001,1862.7,1861.7,0.21485]
[1680607508546,8.99900001,1862.6,1861.6,0.006]
[1680607508747,3.148,1862.5,1861.5,0.23]
[1680607509003,6.741,1862.4,1861.5,0.21487]
[1680607509186,6.78595,1862.4,1861.5,0.006]
[1680607509393,0.5,1862.2,1861.3,3.11088999]
[1680607509671,0.006,1862.2,1861.4,0.0220169]
[1680607509876,0.006,1862.2,1861.4,0.2520169]
[1680607510099,0.006,1862.4,1861.4,0.0220169]
[1680607510287,0.225095,1862.4,1861.4,0.0220169]
[1680607510502,1.225095,1862.4,1861.4,0.2368969]
[1680607510712,1.225095,1862.4,1861.5,0.44488]
[1680607510916,1.225095,1862.4,1861.5,0.21488]
[1680607511101,1.225095,1862.4,1861.6,0.02201452]
[1680607511102,0.1225095,1862.3,1861.6,0.02201452]
[1680607511305,0.1285095,1862.3,1861.6,3.2328967]
[1680607511477,0.006,1862.3,1861.6,0.46687452]
[1680607511675,0.006,1862.4,1861.6,0.21486]
[1680607512019,0.006,1862.4,1861.6,2.43687452]
[1680607512317,0.006,1862.4,1861.6,0.23687452]
[1680607512520,0.006,1862.5,1861.6,0.23687452]
[1680607512779,0.006,1862.5,1861.6,0.66660452]
[1680607512937,0.006,1862.5,1861.7,0.23]
[1680607513285,0.006,1862.5,1861.7,0.44485]
[1680607513531,0.006,1862.5,1861.7,0.23]
[1680607513739,0.006,1862.5,1861.8,0.38571737]
[1680607514035,0.10526176,1862.6,1861.8,0.38571737]
[1680607514186,2.67611176,1862.6,1861.8,0.38571737]
[1680607514392,0.52811176,1862.6,1861.8,0.38571737]
[1680607514589,0.04295,1862.3,1861.7,0.006]
[1680607514838,0.04295,1862.3,1861.5,0.006]
[1680607514990,0.04295,1862.4,1861.5,0.006]
[1680607515192,0.319095,1862.4,1861.6,2.76602218]
[1680607515392,3.08511718,1862.4,1861.7,0.23]
[1680607515592,0.002,1862.5,1861.7,3.21087218]
[1680607515835,0.10526176,1862.6,1861.8,7.61202218]
[1680607516132,0.10526176,1862.6,1862.0,0.21481]
[1680607516339,0.10526176,1862.6,1862.0,0.22081]
[1680607516549,0.10526176,1862.6,1862.1,0.23]
[1680607516919,0.10526176,1862.6,1862.1,0.2148]
[1680607517428,0.10526176,1862.6,1862.2,0.23]
[1680607517624,0.10526176,1862.6,1862.3,0.21478]
[1680607517844,0.10526176,1862.6,1862.4,0.23]
[1680607518149,0.10526176,1862.6,1862.4,0.44477]
[1680607518353,0.10526176,1862.6,1862.4,0.23]
[1680607518711,0.10526176,1862.6,1862.5,2.76602218]
[1680607518916,0.10526176,1862.6,1862.5,3.57755911]
[1680607519215,0.10526176,1862.6,1862.5,0.79231911]
[1680607519419,0.10526176,1862.6,1862.5,0.25800389]
[1680607519725,0.10526176,1862.6,1862.2,0.64168222]
[1680607519726,0.10526176,1862.6,1862.4,3.006]
[1680607519926,0.10526176,1862.6,1862.4,0.006]
[1680607520299,0.10526176,1862.6,1862.3,3.006]
[1680607520558,0.10526176,1862.6,1862.3,0.006]
[1680607520757,0.10526176,1862.6,1862.3,0.51194897]
[1680607521357,0.10526176,1862.6,1862.3,0.23]
[1680607521580,0.10526176,1862.6,1862.3,0.236]
[1680607521715,0.10526176,1862.6,1862.3,0.44478]
[1680607521914,0.10526176,1862.6,1862.3,0.23]
[1680607522623,0.10526176,1862.6,1862.2,0.02800744]
[1680607522836,0.10526176,1862.6,1862.2,0.02200744]
[1680607523358,0.10526176,1862.6,1862.2,0.23679744]
[1680607523518,0.10526176,1862.6,1862.3,0.23]
[1680607524460,0.10526176,1862.6,1862.3,0.44478]
[1680607524813,0.10526176,1862.6,1862.3,5.41080218]
[1680607525021,0.10526176,1862.6,1862.5,0.64429]
[1680607525249,0.10526176,1862.6,1862.5,6.64031218]
[1680607525433,0.10526176,1862.6,1862.5,6.64831218]
[1680607525620,0.10526176,1862.6,1862.5,8.79596218]
[1680607525819,0.00026177,1862.7,1862.5,8.78996218]
[1680607526013,0.00026177,1862.7,1862.6,4.9487784]
[1680607526214,0.00026177,1862.7,1862.6,7.9487784]
[1680607526452,0.00026177,1862.7,1862.6,7.9507784]
[1680607526651,0.00026177,1862.7,1862.6,10.1507784]
[1680607526873,0.00026177,1862.7,1862.6,13.2967784]
[1680607527155,0.00026177,1862.7,1862.6,10.0967784]
[1680607527664,0.00026177,1862.7,1862.6,4.32574622]
[1680607527897,0.00026177,1862.7,1862.5,0.002]
[1680607528027,0.00026177,1862.7,1862.3,0.002]
[1680607528253,0.00026177,1862.7,1862.1,0.002]
[1680607528544,0.04295,1862.6,1861.9,0.21482]
[1680607528748,0.04295,1862.6,1862.4,0.36556208]
[1680607528945,0.00026177,1862.7,1862.4,0.36556208]
[1680607529268,0.04321177,1862.7,1862.4,0.36556208]
[1680607529561,5.87010177,1862.7,1862.4,0.36556208]
[1680607529865,5.87810177,1862.7,1861.9,0.02201098]
[1680607530030,5.74926177,1862.7,1861.9,0.02201098]
[1680607530238,5.74926177,1862.7,1861.9,1.52583098]
[1680607530527,5.74926177,1862.7,1862.1,0.21479]
[1680607530727,0.05120177,1862.7,1862.0,0.51540428]
[1680607530930,8.50702218,1862.6,1862.0,0.36282118]
[1680607531113,0.008,1862.6,1862.0,1.00728118]
[1680607531317,0.04295,1862.6,1862.0,0.38483098]
[1680607531527,0.04295,1862.6,1862.0,0.44479608]
[1680607531752,0.00026177,1862.7,1862.0,1.08924608]
[1680607531929,0.00626177,1862.7,1862.0,1.08924608]
[1680607532150,0.00026177,1862.7,1862.1,0.10892461]
[1680607532494,0.00026177,1862.7,1862.2,0.87438]
[1680607532765,0.00026177,1862.7,1862.2,3.64040218]
[1680607532965,0.00026177,1862.7,1862.4,0.21477]
[1680607533132,0.00026177,1862.7,1862.3,3.0]
[1680607533470,0.00026177,1862.7,1862.4,3.51079218]
[1680607533763,0.00026177,1862.7,1862.4,0.53]
[1680607534121,0.00026177,1862.7,1862.4,1.17432]
[1680607534329,0.00026177,1862.7,1862.5,2.76602218]
[1680607534521,0.00026177,1862.7,1862.6,3.23]
[1680607534522,0.12909177,1862.7,1862.6,3.23]
[1680607534822,0.04320177,1862.7,1862.6,0.57500271]
[1680607535133,0.00026177,1862.7,1862.6,0.23]
[1680607535447,0.12909177,1862.7,1862.2,0.002]
[1680607535773,0.04320177,1862.7,1862.2,3.07771464]
[1680607535986,0.00026177,1862.7,1862.3,3.0]
[1680607536472,8.50728395,1862.7,1862.1,0.002]
[1680607536650,9.36601235,1862.7,1862.2,0.21479]
[1680607536817,8.51528395,1862.7,1862.2,0.64438]
[1680607537170,5.74926177,1862.7,1862.2,0.64438]
[1680607537318,5.74926177,1862.7,1862.2,0.21479]
[1680607537525,8.51528395,1862.7,1862.1,0.2148]
[1680607537741,3.34921013,1862.7,1862.1,0.2148]
[1680607537966,0.00626177,1862.7,1862.1,1.50366]
[1680607538182,0.00626177,1862.7,1862.1,0.64442]
[1680607538328,0.00026177,1862.7,1862.1,0.64442]
[1680607538526,0.00026177,1862.7,1862.2,0.064442]
[1680607538719,0.00026177,1862.7,1862.3,0.64434]
[1680607539060,0.00026177,1862.7,1862.5,0.21476]
[1680607539227,0.00026177,1862.7,1862.2,0.494032]
[1680607539422,0.00026177,1862.7,1862.3,0.21478]
[1680607539873,0.00026177,1862.7,1862.3,0.64435]
[1680607540317,0.00026177,1862.7,1862.3,0.708785]
[1680607541669,5.741,1862.5,1862.0,0.05426759]
[1680607541868,5.741,1862.5,1861.5,0.68559413]
[1680607541869,5.741,1861.8,1861.5,0.68559413]
[1680607542032,5.741,1861.8,1860.8,0.1]
[1680607542033,5.741,1861.6,1860.8,0.102]
[1680607542381,0.02200744,1861.5,1861.0,0.002]
[1680607542519,0.02200744,1861.5,1860.8,0.1]
[1680607542520,0.04298,1861.4,1860.8,0.1]
[1680607542717,8.55199218,1861.6,1861.0,0.3801691]
[1680607542963,0.12892,1861.5,1861.0,0.3801691]
[1680607543163,0.02200744,1861.5,1861.0,0.3801691]
[1680607543365,0.06497744,1861.5,1861.0,0.3801691]
[1680607543770,0.15092744,1861.5,1860.8,0.1]
[1680607544626,0.008,1861.6,1861.0,0.37833558]
[1680607544825,0.09193,1861.8,1861.0,0.59325558]
[1680607545139,0.04297,1861.7,1861.1,0.05932556]
[1680607545344,0.006,1861.7,1861.1,0.70408556]
[1680607545541,0.03000744,1861.8,1861.1,0.70408556]
[1680607545823,5.80596744,1861.8,1861.2,0.23]
[1680607546023,6.48479018,1861.8,1861.2,0.23]
[1680607546220,9.25081236,1861.8,1861.1,0.05932556]
[1680607546423,0.03000744,1861.8,1861.0,0.37833558]
[1680607546639,0.008,1862.0,1861.1,1.73446]
[1680607546838,0.008,1862.0,1861.3,0.21489]
[1680607546839,0.04296,1861.9,1861.3,0.21489]
[1680607547038,0.04296,1861.9,1861.2,0.173446]
[1680607547341,0.04296,1862.1,1861.3,0.65978]
[1680607547685,0.09191,1862.2,1861.4,0.64466]
[1680607547686,0.006,1862.2,1861.4,0.64466]
[1680607547988,0.008,1862.3,1861.5,0.23]
[1680607548194,0.006,1862.3,1861.6,1.21486]
[1680607548340,0.04295,1862.3,1861.7,0.23]
[1680607548535,0.30069,1862.3,1861.7,0.23]
[1680607548765,0.30069,1862.3,1861.7,0.7676]
[1680607549045,5.749,1862.4,1861.8,1.50387]
[1680607549046,0.008,1862.4,1861.8,1.50387]
[1680607549245,0.008,1862.4,1861.5,0.21688]
[1680607549246,0.12887,1862.2,1861.5,0.21688]
[1680607549553,0.04296,1862.2,1861.6,0.44486]
[1680607549889,0.04296,1862.2,1861.6,0.789346]
[1680607550786,0.15086744,1862.3,1861.6,0.789346]
[1680607550939,0.02200744,1862.3,1861.6,0.574486]
[1680607551286,0.06495744,1862.3,1861.7,0.21485]
[1680607551593,0.02200744,1862.3,1861.8,0.44484]
[1680607551890,0.02200744,1862.3,1861.8,0.21484]
[1680607552071,0.02200744,1862.3,1861.8,0.58503886]
[1680607552449,0.02200744,1862.3,1861.8,0.37019886]
[1680607552652,0.06495744,1862.3,1861.7,3.0574486]
[1680607552885,0.15686744,1862.3,1861.8,0.23]
[1680607553051,0.15686744,1862.3,1861.7,0.44485]
[1680607553241,0.15686744,1862.3,1861.7,0.23]
[1680607553436,0.15686744,1862.3,1861.7,0.44485]
[1680607553741,0.06495744,1862.3,1861.7,0.44485]
[1680607553940,0.02200744,1862.3,1861.7,0.80891022]
[1680607554365,0.15086744,1862.3,1861.7,3.59406022]
[1680607554576,0.15086744,1862.3,1861.7,0.23]
[1680607554951,0.15686744,1862.3,1861.7,0.23]
[1680607555342,0.15086744,1862.3,1861.7,0.23]
[1680607556369,0.15686744,1862.3,1861.7,0.23]
[1680607556584,0.15086744,1862.3,1861.6,0.44485]
[1680607556790,0.15086744,1862.3,1861.6,3.59833218]
[1680607557084,0.15086744,1862.3,1861.7,3.0]
[1680607557281,0.006,1862.4,1861.9,0.5]
[1680607557582,0.04295,1862.5,1861.9,3.34960222]
[1680607557795,0.08615177,1862.7,1862.0,0.23]
[1680607558078,0.04295,1862.6,1862.0,0.44482]
[1680607558281,0.04295,1862.6,1862.0,0.23]
[1680607558587,0.006,1862.6,1862.0,0.44481]
[1680607558888,0.006,1862.6,1862.1,0.58010969]
[1680607559086,0.006,1862.6,1862.1,1.00972969]
[1680607559253,0.006,1862.6,1862.1,0.58010969]
[1680607559456,5.74726177,1862.7,1862.1,1.00972969]
[1680607559649,0.00826177,1862.7,1862.2,2.76602218]
[1680607559990,0.00026177,1862.7,1862.3,0.27660222]
[1680607560192,0.00026177,1862.7,1862.3,0.21478]
[1680607560488,0.00026177,1862.7,1862.4,0.23]
[1680607560983,0.00026177,1862.7,1862.3,0.21478]
[1680607561196,0.00026177,1862.7,1862.2,0.21479]
[1680607561486,0.02200744,1862.6,1862.1,0.36530969]
[1680607561636,0.02800744,1862.6,1862.2,0.21479]
[1680607561842,8.50702218,1862.5,1862.1,0.36530969]
[1680607562042,8.55797218,1862.5,1862.1,0.36530969]
[1680607562293,6.04169,1862.3,1862.1,0.36530969]